bitfinex-derivatives/quotes_BTCF0:USTF0_20241010
["timestamp","ask_amount","ask_price","bid_price","bid_amount"]
[1728530735394,0.3021,60959.0,60958.0,0.04921941]
[1728530735585,1.39422,60959.0,60958.0,0.04920555]
[1728530735790,1.39422,60959.0,60958.0,0.0492091]
[1728530735985,1.39422,60959.0,60954.0,0.06560209]
[1728530735986,0.082105,60955.0,60954.0,0.06560209]
[1728530736297,0.082105,60955.0,60953.0,0.06560209]
[1728530736298,0.082107,60954.0,60953.0,0.06560209]
[1728530736492,0.1425,60954.0,60952.0,0.06560209]
[1728530736695,0.192108,60953.0,60952.0,0.06560209]
[1728530736995,0.082113,60949.0,60948.0,0.0819884]
[1728530737188,0.082113,60949.0,60946.0,0.04686097]
[1728530737189,0.082115,60948.0,60947.0,0.0819884]
[1728530738282,0.082115,60948.0,60946.0,0.03546097]
[1728530738283,0.082116,60947.0,60946.0,0.11744937]
[1728530738492,0.082116,60947.0,60946.0,0.15518208]
[1728530738996,0.082116,60947.0,60946.0,0.91518208]
[1728530739189,0.082116,60947.0,60946.0,0.91516337]
[1728530739692,0.083116,60947.0,60946.0,0.92916337]
[1728530739997,0.001,60947.0,60946.0,1.10955177]
[1728530740394,0.001,60947.0,60946.0,1.71179177]
[1728530740602,0.082109,60953.0,60950.0,0.082111]
[1728530740798,0.082109,60953.0,60951.0,0.26277114]
[1728530740994,0.082109,60953.0,60952.0,0.09007114]
[1728530741892,0.083109,60953.0,60952.0,0.09007114]
[1728530742403,0.083109,60953.0,60952.0,0.10107114]
[1728530743297,0.001,60953.0,60952.0,0.29318014]
[1728530743504,0.001,60953.0,60952.0,0.203109]
[1728530750612,0.001,60953.0,60952.0,0.29288227]
[1728530750819,0.001,60953.0,60952.0,0.18288227]
[1728530751520,0.193108,60953.0,60952.0,0.10077327]
[1728530753323,0.193108,60953.0,60952.0,0.19901877]
[1728530753516,0.193108,60953.0,60952.0,0.10077513]
[1728530754019,0.193108,60953.0,60952.0,0.18269336]
[1728530754823,0.22245363,60953.0,60952.0,0.18269336]
[1728530755028,0.22845363,60953.0,60952.0,0.17269336]
[1728530755329,0.22845363,60953.0,60952.0,0.17271288]
[1728530756022,0.22845363,60953.0,60952.0,0.17171288]
[1728530756023,0.22145363,60953.0,60952.0,0.17171288]
[1728530756221,0.22645363,60953.0,60952.0,0.08977513]
[1728530757726,0.22745363,60953.0,60952.0,0.09077513]
[1728530758229,0.22645363,60953.0,60952.0,0.08977513]
[1728530758630,0.22645363,60953.0,60952.0,0.17173846]
[1728530758830,0.22745363,60953.0,60952.0,0.17273846]
[1728530759223,0.22745363,60953.0,60952.0,0.09077513]
[1728530759428,0.58825363,60953.0,60952.0,0.09077513]
[1728530761727,0.58825363,60953.0,60952.0,0.09104021]
[1728530762734,0.22745363,60953.0,60952.0,0.09104021]
[1728530762933,0.58825363,60953.0,60952.0,0.09104021]
[1728530763929,0.47825363,60953.0,60952.0,0.09104021]
[1728530764126,0.58825363,60953.0,60952.0,0.09104021]
[1728530764832,0.58225363,60953.0,60952.0,0.09004021]
[1728530765032,0.58725363,60953.0,60952.0,0.09004021]
[1728530766239,0.58725363,60953.0,60952.0,0.18832248]
[1728530767141,0.58525363,60953.0,60952.0,0.18832248]
[1728530767740,0.58525363,60953.0,60952.0,0.09004021]
[1728530767933,0.59025363,60953.0,60952.0,0.18845404]
[1728530768840,0.59025363,60953.0,60952.0,0.09004021]
[1728530770540,0.58925363,60953.0,60952.0,0.09004021]
[1728530771535,0.50614563,60953.0,60952.0,0.08999417]
[1728530771735,0.58825363,60953.0,60952.0,0.08999417]
[1728530773739,0.58825363,60953.0,60952.0,0.1884533]
[1728530775837,0.58825363,60953.0,60952.0,0.08999417]
[1728530776849,0.22745363,60953.0,60952.0,0.18846015]
[1728530778035,0.22745363,60953.0,60952.0,0.08999417]
[1728530780743,0.22745363,60953.0,60952.0,0.18850027]
[1728530781248,0.22745363,60953.0,60952.0,0.08999417]
[1728530781949,0.22745363,60953.0,60952.0,0.18850761]
[1728530782948,0.22745363,60953.0,60952.0,0.08999417]
[1728530783153,0.22745363,60953.0,60952.0,0.18850761]
[1728530783349,0.22745363,60953.0,60952.0,0.08999417]
[1728530785452,0.198108,60953.0,60952.0,0.08999417]
[1728530785656,0.198108,60953.0,60952.0,0.18850761]
[1728530786154,0.198108,60953.0,60952.0,0.08999417]
[1728530786350,0.088108,60953.0,60952.0,0.08999417]
[1728530786650,0.198108,60953.0,60952.0,0.08999417]
[1728530787255,0.194108,60953.0,60952.0,0.08999417]
[1728530787448,0.192108,60953.0,60952.0,0.08999417]
[1728530787648,0.192108,60953.0,60952.0,0.09099417]
[1728530788052,0.193108,60953.0,60952.0,0.09099417]
[1728530791956,0.193108,60953.0,60952.0,0.19834558]
[1728530794849,0.001,60953.0,60952.0,0.39045458]
[1728530795056,0.001,60953.0,60952.0,0.75125458]
[1728530795763,0.001,60953.0,60952.0,0.89178388]
[1728530796059,0.11494792,60985.0,60952.0,0.89178388]
[1728530796060,0.090294,60964.0,60960.0,0.082098]
[1728530796252,0.00246112,60967.0,60960.0,0.75024358]
[1728530796253,0.082095,60963.0,60960.0,0.75024358]
[1728530796559,0.082095,60963.0,60961.0,0.26074558]
[1728530796758,0.082095,60963.0,60962.0,0.19734558]
[1728530798060,0.092095,60963.0,60962.0,0.09099417]
[1728530798367,0.101095,60963.0,60962.0,0.09099417]
[1728530798566,0.019,60963.0,60962.0,0.19763043]
[1728530798858,0.019,60963.0,60962.0,0.27972643]
[1728530799864,0.019,60963.0,60962.0,0.27872643]
[1728530799865,0.015,60963.0,60962.0,0.27872643]
[1728530800062,0.015,60963.0,60962.0,0.082096]
[1728530800260,0.015,60963.0,60962.0,0.2016495]
[1728530800467,0.019,60963.0,60962.0,0.1715147]
[1728530801665,0.019,60963.0,60962.0,0.27801105]
[1728530801856,0.101094,60963.0,60962.0,0.27801105]
[1728530802061,0.101094,60963.0,60962.0,0.1715147]
[1728530803665,0.101094,60963.0,60962.0,0.082096]
[1728530810855,0.101094,60963.0,60962.0,0.26950972]
[1728530812866,0.101094,60963.0,60962.0,0.17132184]
[1728530814271,0.101094,60963.0,60962.0,0.26949598]
[1728530815680,0.101094,60963.0,60962.0,0.17132184]
[1728530815870,0.101094,60963.0,60962.0,0.26952333]
[1728530816578,0.101094,60963.0,60962.0,0.26953248]
[1728530817677,0.101094,60963.0,60962.0,0.17132184]
[1728530817871,0.101094,60963.0,60962.0,0.26954461]
[1728530818063,0.101094,60963.0,60962.0,0.17132184]
[1728530818773,0.082096,60962.0,60961.0,0.0644]
[1728530819882,0.087096,60962.0,60961.0,0.0644]
[1728530820581,0.090096,60962.0,60961.0,0.0634]
[1728530822279,0.090096,60962.0,60961.0,0.12889079]
[1728530823072,0.090096,60962.0,60961.0,0.0634]
[1728530825776,0.090096,60962.0,60961.0,0.25972156]
[1728530827077,0.090096,60962.0,60961.0,0.25977082]
[1728530827584,0.200096,60962.0,60961.0,0.19637082]
[1728530831785,0.200096,60962.0,60961.0,0.19635659]
[1728530833976,0.082098,60960.0,60959.0,0.3608]
[1728530834585,0.0821,60959.0,60958.0,0.08205802]
[1728530836089,0.0841,60959.0,60958.0,0.86772691]
[1728530837396,0.0841,60959.0,60958.0,0.76]
[1728530837586,0.0841,60959.0,60958.0,0.86772691]
[1728530837786,0.0841,60959.0,60958.0,0.84205802]
[1728530838385,0.0841,60959.0,60958.0,0.93161229]
[1728530840688,0.0841,60959.0,60958.0,0.93165527]
[1728530840890,0.0841,60959.0,60958.0,1.06406351]
[1728530841585,0.082096,60962.0,60958.0,0.98196251]
[1728530841894,0.082096,60962.0,60961.0,0.192097]
[1728530842094,0.082096,60962.0,60961.0,0.38839123]
[1728530842685,0.087096,60962.0,60961.0,0.38839123]
[1728530843303,0.090096,60962.0,60961.0,0.38839123]
[1728530844798,0.200096,60962.0,60961.0,0.19629423]
[1728530846996,0.118,60962.0,60961.0,0.19629278]
[1728530847197,0.200096,60962.0,60961.0,0.19629278]
[1728530848990,0.082098,60960.0,60959.0,0.3608]
[1728530849882,0.082098,60960.0,60959.0,0.44283425]
[1728530850087,0.082098,60960.0,60959.0,0.3608]
[1728530850490,0.192098,60960.0,60959.0,0.3608]
[1728530850693,0.196098,60960.0,60959.0,0.3608]
[1728530853500,0.0821,60959.0,60958.0,0.92641525]
[1728530853699,0.0821,60959.0,60958.0,1.0143793]
[1728530854700,0.0841,60959.0,60958.0,1.0143793]
[1728530854999,0.0841,60959.0,60958.0,1.04004809]
[1728530855895,0.0841,60959.0,60958.0,1.06559579]
[1728530857998,0.0841,60959.0,60958.0,1.039927]
[1728530859001,0.0841,60959.0,60958.0,1.06559579]
[1728530860907,0.0841,60959.0,60958.0,1.039927]
[1728530861104,0.0841,60959.0,60958.0,1.06559574]
[1728530867911,0.0841,60959.0,60958.0,1.30510535]
[1728530868611,0.0841,60959.0,60958.0,1.18020458]
[1728530869900,0.0841,60959.0,60958.0,1.30510499]
[1728530870715,0.0841,60959.0,60958.0,1.18020458]
[1728530871011,0.0841,60959.0,60958.0,0.95802087]
[1728530871413,0.0841,60959.0,60958.0,0.93235216]
[1728530871714,0.0841,60959.0,60958.0,0.95802087]
[1728530873114,0.0841,60959.0,60958.0,0.93235216]
[1728530875711,0.0841,60959.0,60958.0,0.93235911]
[1728530877111,0.0841,60959.0,60958.0,0.95802782]
[1728530878924,0.0841,60959.0,60958.0,1.1905234]
[1728530879215,0.0841,60959.0,60958.0,1.16485469]
[1728530880617,0.0841,60959.0,60958.0,1.16484348]
[1728530880819,0.1941,60959.0,60958.0,0.4376154]
[1728530881021,0.1941,60959.0,60958.0,0.1978361]
[1728530884225,0.1941,60959.0,60958.0,0.2799371]
[1728530885522,0.1941,60959.0,60958.0,0.39481002]
[1728530886023,0.1941,60959.0,60958.0,0.51969527]
[1728530886426,0.1941,60959.0,60958.0,0.2799371]
[1728530890027,0.1941,60959.0,60958.0,0.27990562]
[1728530891919,0.1941,60959.0,60958.0,0.27990511]
[1728530892120,0.0841,60959.0,60958.0,0.27990511]
[1728530893130,0.0841,60959.0,60958.0,0.40478917]
[1728530893726,0.0841,60959.0,60958.0,1.16478917]
[1728530894831,0.0841,60959.0,60958.0,1.03990511]
[1728530895228,0.0841,60959.0,60958.0,0.27990511]
[1728530895824,0.1941,60959.0,60958.0,0.27990511]
[1728530896023,0.1941,60959.0,60958.0,0.19780411]
[1728530898027,0.22409487,60959.0,60958.0,0.19780411]
[1728530902437,0.22409487,60959.0,60958.0,0.09024068]
[1728530905445,0.22409487,60959.0,60958.0,0.19785754]
[1728530909037,0.22409487,60959.0,60958.0,0.09024068]
[1728530909339,0.22409487,60959.0,60958.0,0.19787639]
[1728530915045,0.22409487,60959.0,60958.0,0.19793134]
[1728530916048,0.22409487,60959.0,60958.0,0.43776103]
[1728530916840,0.22409487,60959.0,60958.0,0.19793134]
[1728530919853,0.22409487,60959.0,60958.0,0.19790429]
[1728530924644,0.22409487,60959.0,60958.0,0.19791101]
[1728530929558,0.22409487,60959.0,60958.0,0.19792398]
[1728530929761,0.22409487,60959.0,60957.0,0.19697492]
[1728530929762,0.082101,60958.0,60957.0,0.19697492]
[1728530929958,0.082101,60958.0,60957.0,0.51986078]
[1728530930857,0.082101,60958.0,60957.0,0.40498786]
[1728530931163,0.083101,60958.0,60957.0,0.40498786]
[1728530931854,0.083101,60958.0,60957.0,0.40598786]
[1728530934451,0.083101,60958.0,60957.0,0.51358813]
[1728530935145,0.083101,60958.0,60957.0,0.73848906]
[1728530935355,0.083101,60958.0,60957.0,0.62358813]
[1728530936054,0.083101,60958.0,60957.0,0.51595951]
[1728530936954,0.083101,60958.0,60957.0,0.39100861]
[1728530939359,0.083101,60958.0,60957.0,0.39099552]
[1728530939551,0.083101,60958.0,60957.0,0.63083612]
[1728530939856,0.083101,60958.0,60957.0,0.51593515]
[1728530941757,0.001,60958.0,60957.0,0.51593515]
[1728530941961,0.0038,60967.0,60963.0,0.082093]
[1728530942266,0.192094,60964.0,60963.0,0.082093]
[1728530942563,0.192094,60964.0,60963.0,0.27959449]
[1728530943070,0.192094,60964.0,60963.0,0.28059449]
[1728530943964,0.204094,60964.0,60963.0,0.28059449]
[1728530952359,0.204094,60964.0,60963.0,0.17324931]
[1728530954574,0.204094,60964.0,60963.0,0.083093]
[1728530959173,0.204094,60964.0,60963.0,0.001]
[1728530960669,0.204094,60964.0,60963.0,0.06660867]
[1728530962670,0.204094,60964.0,60963.0,0.19856508]
[1728530967085,0.204094,60964.0,60963.0,0.19871941]
[1728530969589,0.204094,60964.0,60963.0,0.06661023]
[1728530972090,0.204094,60964.0,60963.0,0.001]
[1728530977590,0.204094,60964.0,60963.0,0.09115418]
[1728530979992,0.204094,60964.0,60963.0,0.19862173]
[1728530981497,0.204094,60964.0,60963.0,0.39624992]
[1728530981700,0.204094,60964.0,60963.0,0.19862819]
[1728530986496,0.204094,60964.0,60963.0,0.19878001]
[1728530986994,0.204094,60964.0,60963.0,0.09122968]
[1728530990011,0.204094,60964.0,60963.0,0.19879358]
[1728530991491,0.204094,60964.0,60963.0,0.19881696]
[1728530992698,0.204094,60964.0,60963.0,0.001]
[1728530995206,0.204094,60964.0,60963.0,0.0666421]
[1728530998207,0.204094,60964.0,60963.0,0.001]
[1728530998908,0.204094,60964.0,60963.0,0.06664624]
[1728530999804,0.204094,60964.0,60963.0,0.19882415]
[1728531001607,0.3684,60973.0,60963.0,0.28091262]
[1728531001808,0.552881,60973.0,60972.0,0.09845899]
[1728531002111,0.552881,60973.0,60972.0,0.09024982]
[1728531002307,0.552881,60973.0,60972.0,0.18866557]
[1728531003015,0.558881,60973.0,60972.0,0.09024982]
[1728531003204,0.565881,60973.0,60972.0,0.09024982]
[1728531003511,0.565881,60973.0,60972.0,0.18864041]
[1728531003512,0.559881,60973.0,60972.0,0.18864041]
[1728531003710,0.565881,60973.0,60972.0,0.19064041]
[1728531004006,0.565881,60973.0,60972.0,0.09224982]
[1728531004412,0.565881,60973.0,60972.0,0.09194778]
[1728531004912,0.59462912,60973.0,60972.0,0.09194778]
[1728531007704,0.59462912,60973.0,60972.0,0.002]
[1728531008106,0.23382912,60973.0,60972.0,0.002]
[1728531009210,0.205081,60973.0,60972.0,0.002]
[1728531014705,0.205081,60973.0,60972.0,0.09189761]
[1728531015115,0.205081,60973.0,60972.0,0.09189758]
[1728531018807,0.205081,60973.0,60972.0,0.09190336]
[1728531021120,0.013,60973.0,60972.0,0.17398536]
[1728531021419,0.013,60973.0,60972.0,0.34708536]
[1728531021810,0.013,60973.0,60972.0,0.4539715]
[1728531022213,0.013,60973.0,60972.0,0.56885625]
[1728531022412,0.013,60973.0,60972.0,0.4539715]
[1728531022817,0.013,60973.0,60972.0,0.257182]
[1728531023218,0.006,60973.0,60972.0,0.256182]
[1728531023521,0.006,60973.0,60972.0,0.257182]
[1728531023522,0.013,60973.0,60972.0,0.257182]
[1728531024117,0.007,60973.0,60972.0,0.257182]
[1728531024620,0.007,60973.0,60972.0,0.28735752]
[1728531024812,0.007,60973.0,60972.0,0.28635752]
[1728531025011,0.007,60973.0,60972.0,0.64815752]
[1728531029723,0.199081,60973.0,60972.0,0.67269054]
[1728531029919,0.199081,60973.0,60972.0,0.55910854]
[1728531031321,0.199081,60973.0,60972.0,0.19830854]
[1728531034733,0.089081,60973.0,60972.0,0.19830854]
[1728531038030,0.089081,60973.0,60972.0,0.19856268]
[1728531044829,0.089081,60973.0,60972.0,0.002]
[1728531052728,0.089081,60973.0,60972.0,0.19872922]
[1728531055744,0.089081,60973.0,60972.0,0.28081122]
[1728531059740,0.089081,60973.0,60972.0,0.084082]
[1728531060242,0.089081,60973.0,60972.0,0.002]
[1728531060444,0.199081,60973.0,60972.0,0.002]
[1728531061948,0.559881,60973.0,60972.0,0.06765758]
[1728531062135,0.559881,60973.0,60972.0,0.002]
[1728531062846,0.58908855,60973.0,60972.0,0.002]
[1728531063442,0.58908855,60973.0,60972.0,0.05122868]
[1728531065039,0.58908855,60973.0,60972.0,0.002]
[1728531066947,0.58908855,60973.0,60972.0,0.05122868]
[1728531067852,0.58908855,60973.0,60972.0,0.0919318]
[1728531069755,0.22828855,60973.0,60972.0,0.0919318]
[1728531070444,0.089081,60973.0,60972.0,0.0919318]
[1728531070649,0.199081,60973.0,60972.0,0.0919318]
[1728531070949,0.199081,60973.0,60972.0,0.19033295]
[1728531075150,0.199081,60973.0,60972.0,0.19025968]
[1728531079562,0.199081,60973.0,60972.0,0.19026301]
[1728531082161,0.199081,60973.0,60972.0,0.09186186]
[1728531083064,0.199081,60973.0,60972.0,0.002]
[1728531085152,0.089081,60973.0,60972.0,0.002]
[1728531087557,0.089081,60973.0,60972.0,0.17761185]
[1728531087757,0.089081,60973.0,60972.0,0.25969385]
[1728531087955,0.089081,60973.0,60972.0,0.194082]
[1728531089662,0.089081,60973.0,60972.0,0.112]
[1728531092661,0.199081,60973.0,60972.0,0.002]
[1728531092860,0.199081,60973.0,60972.0,0.06762545]
[1728531093269,0.199081,60973.0,60972.0,0.002]
[1728531097963,0.199081,60973.0,60972.0,0.19900227]
[1728531098869,0.199081,60973.0,60972.0,0.19900848]
[1728531113083,0.199081,60973.0,60972.0,0.002]
[1728531115488,0.199081,60973.0,60972.0,0.06764202]
[1728531117487,0.199081,60973.0,60972.0,0.002]
[1728531118393,0.199081,60973.0,60972.0,0.06764202]
[1728531118582,0.199081,60973.0,60972.0,0.002]
[1728531119484,0.199081,60973.0,60972.0,0.06764202]
[1728531119985,0.199081,60973.0,60972.0,0.19904651]
[1728531123194,0.089081,60973.0,60972.0,0.19904651]
[1728531127682,0.089081,60973.0,60972.0,0.28112851]
[1728531131290,0.089081,60973.0,60972.0,0.28116687]
[1728531134094,0.089081,60973.0,60972.0,0.19908487]
[1728531134994,0.089081,60973.0,60972.0,0.002]
[1728531140293,0.089081,60973.0,60972.0,0.03170988]
[1728531142503,0.089081,60973.0,60972.0,0.12162326]
[1728531146403,0.089081,60973.0,60972.0,0.09191338]
[1728531146905,0.089081,60973.0,60972.0,0.09188185]
[1728531149002,0.089081,60973.0,60972.0,0.19901583]
[1728531150506,0.089081,60973.0,60972.0,0.002]
[1728531157507,0.089081,60973.0,60972.0,0.09187667]
[1728531165507,0.089081,60973.0,60972.0,0.084082]
[1728531172512,0.089081,60973.0,60972.0,0.28086263]
[1728531172715,0.089081,60973.0,60972.0,0.19878063]
[1728531173028,0.199081,60973.0,60972.0,0.19878063]
[1728531180429,0.199081,60973.0,60972.0,0.09177375]
[1728531180730,0.199081,60973.0,60972.0,0.002]
[1728531186730,0.199081,60973.0,60972.0,0.06758219]
[1728531187433,0.199081,60973.0,60972.0,0.002]
[1728531187737,0.199081,60973.0,60972.0,0.19878757]
[1728531188836,0.199081,60973.0,60972.0,0.95878757]
[1728531189636,0.199081,60973.0,60972.0,0.19878757]
[1728531190543,0.089081,60973.0,60972.0,0.19878757]
[1728531190745,0.199081,60973.0,60972.0,0.19878757]
[1728531194144,0.199081,60973.0,60972.0,0.19880329]
[1728531196746,0.199081,60973.0,60972.0,0.19877798]
[1728531201548,0.199081,60973.0,60972.0,0.1900952]
[1728531201849,0.199081,60973.0,60972.0,0.09177254]
[1728531202650,0.199081,60973.0,60972.0,0.002]
[1728531205241,0.199081,60973.0,60972.0,0.05114936]
[1728531205548,0.199081,60973.0,60972.0,0.002]
[1728531208757,0.319081,60973.0,60972.0,0.002]
[1728531210556,0.319081,60973.0,60972.0,0.17391081]
[1728531211447,0.679881,60973.0,60972.0,0.17391081]
[1728531213349,0.679881,60973.0,60972.0,0.08393677]
[1728531214356,0.679881,60973.0,60972.0,0.002]
[1728531215964,0.319081,60973.0,60972.0,0.002]
[1728531216168,0.679881,60973.0,60972.0,0.002]
[1728531216860,0.319081,60973.0,60972.0,0.002]
[1728531217064,0.679881,60973.0,60972.0,0.002]
[1728531219657,0.319081,60973.0,60972.0,0.002]
[1728531219859,0.679881,60973.0,60972.0,0.002]
[1728531222074,0.319081,60973.0,60972.0,0.002]
[1728531222768,0.679881,60973.0,60972.0,0.002]
[1728531224464,0.319081,60973.0,60972.0,0.002]
[1728531224868,0.679881,60973.0,60972.0,0.002]
[1728531225063,0.679881,60973.0,60972.0,0.08393677]
[1728531225575,0.679881,60973.0,60972.0,0.002]
[1728531227581,0.319081,60973.0,60972.0,0.002]
[1728531227773,0.679881,60973.0,60972.0,0.002]
[1728531229878,0.679881,60973.0,60972.0,0.05111215]
[1728531230080,0.679881,60973.0,60972.0,0.002]
[1728531232072,0.319081,60973.0,60972.0,0.002]
[1728531232680,0.679881,60973.0,60972.0,0.09202006]
[1728531232975,0.679881,60973.0,60972.0,0.09201996]
[1728531235468,0.319081,60973.0,60972.0,0.09201996]
[1728531235675,0.679881,60973.0,60972.0,0.09201996]
[1728531240582,0.679881,60973.0,60972.0,0.002]
[1728531240782,0.679881,60973.0,60972.0,0.05116393]
[1728531240986,0.679881,60973.0,60972.0,0.002]
[1728531241378,0.559881,60973.0,60972.0,0.05114106]
[1728531241690,0.559881,60973.0,60972.0,0.002]
[1728531242388,0.559881,60973.0,60972.0,0.05113448]
[1728531242890,0.559881,60973.0,60972.0,0.002]
[1728531243086,0.559881,60973.0,60972.0,0.0322]
[1728531247791,0.559881,60973.0,60972.0,0.22039705]
[1728531251087,0.199081,60973.0,60972.0,0.22039705]
[1728531251290,0.559881,60973.0,60972.0,0.22037792]
[1728531251590,0.559881,60973.0,60972.0,0.12205526]
[1728531253791,0.559881,60973.0,60972.0,0.23205526]
[1728531253792,0.3678,60973.0,60972.0,0.23205526]
[1728531253998,0.3678,60973.0,60972.0,0.22898348]
[1728531253999,0.449881,60973.0,60972.0,0.22898348]
[1728531255687,0.449881,60973.0,60972.0,0.0322]
[1728531260195,0.449881,60973.0,60972.0,0.08125205]
[1728531260600,0.449881,60973.0,60972.0,0.19125205]
[1728531261897,0.449881,60973.0,60972.0,0.1422]
[1728531262306,0.449881,60973.0,60972.0,0.19124839]
[1728531262792,0.449881,60973.0,60972.0,0.33844839]
[1728531263491,0.089081,60973.0,60972.0,0.33844839]
[1728531268604,0.089081,60973.0,60972.0,0.22844839]
[1728531270801,0.089081,60973.0,60972.0,1.23424]
[1728531271691,0.089081,60973.0,60972.0,0.63424]
[1728531272098,0.089081,60973.0,60972.0,1.23424]
[1728531272297,0.089081,60973.0,60972.0,0.63424]
[1728531272601,0.089081,60973.0,60972.0,1.23424]
[1728531276205,0.089081,60973.0,60972.0,1.316322]
[1728531276995,0.089081,60973.0,60972.0,0.716322]
[1728531277899,0.089081,60973.0,60972.0,0.91236445]
[1728531278100,0.089081,60973.0,60972.0,1.51236445]
[1728531282200,0.089081,60973.0,60972.0,1.63602274]
[1728531283603,0.089081,60973.0,60972.0,1.51236445]
[1728531284901,0.089081,60973.0,60972.0,1.87316445]
[1728531285699,0.089081,60973.0,60972.0,1.99685101]
[1728531287022,0.089081,60973.0,60972.0,0.90481101]
[1728531287310,0.089081,60973.0,60972.0,0.6584625]
[1728531287502,0.089081,60973.0,60972.0,0.6282625]
[1728531289310,0.089081,60973.0,60972.0,0.50457594]
[1728531289910,0.089081,60973.0,60972.0,0.50461527]
[1728531292906,0.089081,60973.0,60972.0,0.24314308]
[1728531295212,0.089081,60973.0,60972.0,0.194082]
[1728531297113,0.089081,60973.0,60972.0,0.084082]
[1728531299613,0.199081,60973.0,60972.0,0.002]
[1728531300815,0.199081,60973.0,60972.0,0.19827058]
[1728531302413,0.199081,60973.0,60972.0,0.09154106]
[1728531302619,0.199081,60973.0,60972.0,0.19843691]
[1728531303320,0.199081,60973.0,60972.0,0.09154106]
[1728531304920,0.199081,60973.0,60972.0,0.19845481]
[1728531307027,0.089081,60973.0,60972.0,0.19845481]
[1728531307522,0.199081,60973.0,60972.0,0.19845481]
[1728531310733,0.559881,60973.0,60972.0,0.19845481]
[1728531315928,0.559881,60973.0,60972.0,0.09154106]
[1728531316433,0.559881,60973.0,60972.0,0.19848635]
[1728531317427,0.559881,60973.0,60972.0,0.19869003]
[1728531319231,0.559881,60973.0,60972.0,0.09173242]
[1728531320038,0.199081,60973.0,60972.0,0.09173242]
[1728531320221,0.559881,60973.0,60972.0,0.09173242]
[1728531321536,0.449881,60973.0,60972.0,0.09173242]
[1728531322328,0.559881,60973.0,60972.0,0.09173242]
[1728531323034,0.559881,60973.0,60972.0,0.19872374]
[1728531326941,0.559881,60973.0,60972.0,0.1987989]
[1728531327839,0.199081,60973.0,60972.0,0.1987989]
[1728531328046,0.199081,60973.0,60972.0,0.43724496]
[1728531328647,0.199081,60973.0,60972.0,0.1987989]
[1728531330139,0.199081,60973.0,60972.0,0.09178209]
[1728531331046,0.559881,60973.0,60972.0,0.09178209]
[1728531339448,0.559881,60973.0,60972.0,0.19883369]
[1728531339954,0.559881,60973.0,60972.0,0.09178209]
[1728531341443,0.559881,60973.0,60972.0,0.09183182]
[1728531342349,0.559881,60973.0,60972.0,0.19890829]
[1728531343145,0.199081,60973.0,60972.0,0.19890829]
[1728531343354,0.559881,60973.0,60972.0,0.19890829]
[1728531345048,0.559881,60973.0,60972.0,0.09183182]
[1728531348956,0.559881,60973.0,60972.0,0.19889137]
[1728531350055,0.449881,60973.0,60972.0,0.19889137]
[1728531355154,0.089081,60973.0,60972.0,0.19889137]
[1728531360161,0.089081,60973.0,60972.0,0.06746306]
[1728531362459,0.199081,60973.0,60972.0,0.06746306]
[1728531364158,0.199081,60973.0,60972.0,0.002]
[1728531365965,0.199081,60973.0,60972.0,0.06746306]
[1728531367959,0.007,60973.0,60972.0,0.14955039]
[1728531368173,0.007,60973.0,60972.0,0.28061984]
[1728531369574,0.089081,60973.0,60972.0,0.28061984]
[1728531371872,0.007,60973.0,60972.0,0.76543981]
[1728531372474,0.007,60973.0,60972.0,0.79110264]
[1728531373370,0.089081,60973.0,60972.0,0.79110264]
[1728531373670,0.089081,60973.0,60972.0,0.79074328]
[1728531373671,0.007,60973.0,60972.0,0.79074328]
[1728531375088,0.007,60973.0,60972.0,0.76508045]
[1728531375274,0.007,60973.0,60972.0,0.79074327]
[1728531377185,0.007,60973.0,60972.0,0.79064185]
[1728531377777,0.089081,60973.0,60972.0,0.79064185]
[1728531378683,0.089081,60973.0,60972.0,0.79064182]
[1728531383288,0.089081,60973.0,60972.0,0.47054479]
[1728531385579,0.089081,60973.0,60972.0,0.444882]
[1728531385799,0.089081,60973.0,60972.0,0.47054479]
[1728531386879,0.089081,60973.0,60972.0,0.444882]
[1728531387190,0.089081,60973.0,60972.0,0.47054479]
[1728531388386,0.089081,60973.0,60972.0,0.55230054]
[1728531388585,0.089081,60973.0,60972.0,0.47054479]
[1728531389385,0.089081,60973.0,60972.0,0.55230054]
[1728531390186,0.089081,60973.0,60972.0,0.79054478]
[1728531391296,0.089081,60973.0,60972.0,0.87935539]
[1728531392575,0.089081,60973.0,60972.0,0.87919512]
[1728531394297,0.089081,60973.0,60972.0,0.76472172]
[1728531397391,0.089081,60973.0,60972.0,0.76469619]
[1728531398289,0.089081,60973.0,60972.0,0.40389619]
[1728531398491,0.089081,60973.0,60972.0,0.76469619]
[1728531400090,0.089081,60973.0,60972.0,0.6409231]
[1728531400598,0.089081,60973.0,60972.0,0.7554709]
[1728531400808,0.089081,60973.0,60972.0,0.3946709]
[1728531401099,0.089081,60973.0,60972.0,0.7554709]
[1728531401302,0.089081,60973.0,60972.0,0.4203333]
[1728531401495,0.089081,60973.0,60972.0,0.90501768]
[1728531402190,0.089081,60973.0,60972.0,0.90521644]
[1728531403292,0.089081,60973.0,60972.0,0.79066864]
[1728531404096,0.089081,60973.0,60972.0,0.79066863]
[1728531405095,0.089081,60973.0,60972.0,0.56006747]
[1728531411693,0.089081,60973.0,60972.0,0.56007104]
[1728531413202,0.089081,60973.0,60972.0,0.56123007]
[1728531413403,0.089081,60973.0,60972.0,0.92203007]
[1728531414293,0.089081,60973.0,60972.0,0.53556768]
[1728531414499,0.089081,60973.0,60972.0,0.92203007]
[1728531416201,0.089081,60973.0,60972.0,0.56123007]
[1728531416601,0.089081,60973.0,60972.0,0.92203007]
[1728531417001,0.089081,60973.0,60972.0,0.56123007]
[1728531417206,0.089081,60973.0,60972.0,0.92203007]
[1728531417504,0.089081,60973.0,60972.0,0.56123007]
[1728531417695,0.089081,60973.0,60972.0,0.92203007]
[1728531420208,0.089081,60973.0,60972.0,0.56007104]
[1728531420607,0.089081,60973.0,60972.0,0.19927104]
[1728531420805,0.089081,60973.0,60972.0,0.56007104]
[1728531421011,0.089081,60973.0,60972.0,0.19927104]
[1728531421310,0.089081,60973.0,60972.0,0.56007104]